bitfinex-derivatives/quotes_SOLF0:USTF0_20241211
["timestamp","ask_amount","ask_price","bid_price","bid_amount"]
[1733927795777,2.78,226.42,226.29,2.78]
[1733927796069,16.49841377,226.41,226.23,5.37472744]
[1733927796268,16.49841377,226.41,226.23,8.15472744]
[1733927796467,2.2083,226.32,226.24,2.2089]
[1733927796671,2.78,226.36,226.23,8.15472744]
[1733927797071,2.2082,226.32,226.24,2.2089]
[1733927797368,2.78,226.36,226.19,1.4175]
[1733927797569,2.2087,226.27,226.2,2.2094]
[1733927797773,2.8294,226.35,226.19,4.1975]
[1733927798172,16.49841377,226.33,226.15,57.22079411]
[1733927798477,16.49841377,226.33,226.15,55.01099411]
[1733927798672,16.49841377,226.33,226.18,5.37249652]
[1733927798873,2.209,226.24,226.18,5.37249652]
[1733927799075,2.78,226.31,226.18,5.37249652]
[1733927799289,2.2084,226.31,226.18,5.37249652]
[1733927799471,1.3919,226.34,226.21,16.49841377]
[1733927799681,1.3919,226.34,226.21,2.78]
[1733927799878,2.2083,226.32,226.25,2.2088]
[1733927800080,1.3886,226.35,226.24,16.49841377]
[1733927800576,5.6246,226.42,226.24,16.49841377]
[1733927800773,1.3335,226.41,226.24,16.49841377]
[1733927801571,2.2079,226.35,226.24,16.49841377]
[1733927801773,1.3335,226.41,226.24,16.49841377]
[1733927801980,1.3335,226.41,226.24,19.27841377]
[1733927802178,2.2082,226.33,226.26,2.2088]
[1733927802476,1.3335,226.41,226.24,19.27841377]
[1733927802679,17.83191377,226.41,226.24,19.27841377]
[1733927802879,2.2082,226.32,226.25,2.2089]
[1733927803078,17.83191377,226.41,226.24,16.49841377]
[1733927803680,1.3335,226.41,226.24,16.49841377]
[1733927803981,2.8,226.4,226.24,16.49841377]
[1733927804276,4.1335,226.41,226.28,16.49841377]
[1733927804474,4.1335,226.41,226.29,2.8]
[1733927805676,2.2077,226.37,226.3,2.2084]
[1733927805879,4.1335,226.41,226.29,2.8]
[1733927806077,4.1335,226.41,226.19,1.3935]
[1733927806078,16.49841377,226.4,226.2,16.49841377]
[1733927806390,16.49841377,226.36,226.19,1.3935]
[1733927806679,2.8,226.35,226.19,1.3935]
[1733927807279,2.2088,226.26,226.19,3.603]
[1733927807478,2.8,226.33,226.19,1.3935]
[1733927809280,2.8,226.34,226.19,1.3935]
[1733927809779,2.2085,226.3,226.23,2.2091]
[1733927809979,2.8,226.34,226.23,2.2091]
[1733927810184,1.3335,226.41,226.24,2.8]
[1733927810185,16.49841377,226.4,226.24,2.8]
[1733927810488,1.3335,226.41,226.25,2.8]
[1733927810489,2.8,226.39,226.25,2.8]
[1733927810683,1.3335,226.41,226.28,16.49841377]
[1733927810883,2.2075,226.4,226.33,2.2081]
[1733927811089,2.8,226.44,226.32,16.49841377]
[1733927811289,2.7856,226.5,226.32,16.49841377]
[1733927811506,2.207,226.45,226.33,1.333]
[1733927811688,1.3579,226.49,226.36,16.49841377]
[1733927811986,1.3579,226.49,226.37,2.8]
[1733927811987,2.2073,226.42,226.37,2.8]
[1733927812996,1.3579,226.49,226.37,2.8]
[1733927812997,2.2071,226.44,226.37,2.8]
[1733927813194,1.3579,226.49,226.37,2.8]
[1733927815086,2.2073,226.42,226.37,2.8]
[1733927815691,1.3579,226.49,226.37,5.29945263]
[1733927815692,2.2073,226.41,226.37,5.29945263]
[1733927816292,2.2073,226.42,226.37,5.29945263]
[1733927816893,2.2071,226.44,226.37,5.29945263]
[1733927817094,1.3579,226.49,226.37,5.29945263]
[1733927817490,2.2068,226.47,226.37,5.29945263]
[1733927817691,2.78,226.53,226.37,5.29945263]
[1733927817990,1.3865,226.55,226.37,5.29945263]
[1733927817991,4.1665,226.55,226.37,5.29945263]
[1733927818392,2.2067,226.48,226.41,2.2073]
[1733927818590,4.1665,226.55,226.41,2.7]
[1733927819094,2.2066,226.5,226.43,2.2071]
[1733927819301,4.1665,226.55,226.43,2.2071]
[1733927819492,2.2066,226.49,226.41,4.9073]
[1733927819993,2.2066,226.49,226.41,2.7]
[1733927820393,1.3865,226.55,226.41,2.7]
[1733927820799,1.3865,226.55,226.42,2.7933]
[1733927820989,2.2063,226.52,226.42,2.7933]
[1733927821395,2.2063,226.52,226.37,5.29945263]
[1733927821396,2.7,226.53,226.37,5.29945263]
[1733927821595,16.49841377,226.52,226.37,5.29945263]
[1733927821798,12.38747011,226.51,226.37,5.29945263]
[1733927821994,12.38769874,226.5,226.37,5.29945263]
[1733927822300,1.4176,226.51,226.37,5.29945263]
[1733927823015,16.49841377,226.48,226.34,1.4234]
[1733927823303,16.53942423,226.47,226.34,1.4234]
[1733927823603,12.38842423,226.46,226.34,1.4234]
[1733927824705,16.49841377,226.44,226.09,45.92]
[1733927824909,2.2082,226.33,226.23,16.49841377]
[1733927825200,2.7,226.38,226.24,2.7]
[1733927825400,2.7,226.38,226.2,4.9093]
[1733927825597,16.49841377,226.36,226.22,5.22858175]
[1733927825998,16.49841377,226.36,226.2,2.7]
[1733927825999,1.3771,226.35,226.2,2.7]
[1733927826193,13.77247081,226.35,226.2,2.7]
[1733927826401,1.3771,226.35,226.2,2.7]
[1733927826693,1.3771,226.35,226.2,8.056884]
[1733927826898,2.7,226.41,226.23,16.49841377]
[1733927827094,2.2079,226.35,226.27,2.2087]
[1733927827297,2.7,226.41,226.26,2.7]
[1733927827499,2.7,226.41,226.27,16.49841377]
[1733927828096,2.2076,226.39,226.27,16.49841377]
[1733927828302,2.7,226.41,226.27,16.49841377]
[1733927828894,2.2074,226.4,226.27,16.49841377]
[1733927829499,2.2076,226.38,226.3,2.2083]
[1733927829700,1.3771,226.42,226.27,16.49841377]
[1733927830004,1.3345,226.43,226.31,16.49841377]
[1733927830199,1.3345,226.43,226.36,2.2078]
[1733927830495,8.13023795,226.48,226.32,4.0139]
[1733927830697,9.55063795,226.48,226.32,4.0139]
[1733927831298,2.2073,226.41,226.32,4.0139]
[1733927831498,9.55063795,226.48,226.32,4.0139]
[1733927831695,4.1204,226.48,226.32,4.0139]
[1733927832003,2.2071,226.44,226.32,4.0139]
[1733927832197,4.1204,226.48,226.32,4.0139]
[1733927832595,4.1204,226.48,226.37,2.2077]
[1733927833507,9.48817353,226.48,226.37,2.2077]
[1733927834003,2.207,226.45,226.37,2.2077]
[1733927835008,1.4204,226.48,226.38,2.7]
[1733927835603,16.49841377,226.54,226.38,2.7]
[1733927835604,2.7,226.53,226.38,2.7]
[1733927835906,5.5237,226.53,226.38,2.7]
[1733927836308,2.2066,226.5,226.42,2.2072]
[1733927837524,2.2068,226.47,226.39,2.2075]
[1733927837710,5.40108901,226.52,226.38,8.12069658]
[1733927838217,5.40108901,226.52,226.42,2.2072]
[1733927838507,5.40108901,226.52,226.38,8.12069658]
[1733927838711,2.2064,226.51,226.43,2.2071]
[1733927839300,2.2065,226.5,226.43,2.2071]
[1733927839906,5.5237,226.53,226.38,8.12069658]
[1733927840109,5.5237,226.53,226.39,16.49841377]
[1733927840303,2.8237,226.53,226.39,16.49841377]
[1733927841304,2.8237,226.53,226.42,10.29430221]
[1733927841909,5.0299,226.53,226.47,2.2067]
[1733927842208,10.29430221,226.57,226.45,10.29430221]
[1733927842209,2.7,226.57,226.45,10.29430221]
[1733927842410,5.22392851,226.58,226.45,10.29430221]
[1733927843009,2.206,226.56,226.48,2.2066]
[1733927843512,2.206,226.55,226.49,2.2065]
[1733927843912,5.22392851,226.58,226.44,2.7]
[1733927843913,10.29430221,226.57,226.44,2.7]
[1733927844413,2.2062,226.53,226.47,2.2067]
[1733927844611,2.7,226.53,226.39,2.7]
[1733927845415,5.22392851,226.58,226.39,2.7]
[1733927845617,2.742,226.6,226.47,10.29430221]
[1733927845914,4.9476,226.6,226.53,2.2062]
[1733927846309,4.9475,226.6,226.53,2.2062]
[1733927846610,2.742,226.6,226.5,12.99430221]
[1733927846912,2.742,226.6,226.53,2.2062]
[1733927847110,2.742,226.6,226.5,12.99430221]
[1733927847511,1.3289,226.6,226.55,2.206]
[1733927847914,2.2051,226.64,226.57,2.2057]
[1733927848219,2.2051,226.64,226.38,28.97499879]
[1733927848220,2.7,226.66,226.56,12.95430221]
[1733927848515,2.2048,226.67,226.6,2.2055]
[1733927848716,10.29430221,226.68,226.56,12.95430221]
[1733927849211,1.3422,226.69,226.56,2.66]
[1733927849617,2.2049,226.66,226.59,2.2056]
[1733927849915,1.3422,226.69,226.56,2.66]
[1733927850220,17.79339798,226.69,226.56,2.66]
[1733927850607,1.3422,226.69,226.56,2.66]
[1733927850815,2.205,226.66,226.57,2.2057]
[1733927851016,1.3422,226.69,226.57,2.2057]
[1733927851221,1.3422,226.69,226.56,2.66]
[1733927851412,3.5468,226.69,226.61,2.2053]
[1733927851617,1.3422,226.69,226.57,16.45119798]
[1733927851824,1.4429,226.73,226.57,16.45119798]
[1733927852118,2.2044,226.72,226.57,16.45119798]
[1733927852416,2.8744,226.77,226.61,16.45119798]
[1733927852714,2.204,226.75,226.67,2.2048]
[1733927853017,2.8744,226.77,226.62,4.0899]
[1733927853616,2.8744,226.77,226.62,6.8155]
[1733927853817,16.45119798,226.82,226.65,16.45119798]
[1733927854017,19.11119798,226.82,226.65,16.45119798]
[1733927854413,2.2036,226.79,226.71,2.2043]
[1733927855425,2.2036,226.79,226.69,2.66]
[1733927855426,2.2036,226.79,226.72,2.2043]
[1733927856220,16.45119798,226.82,226.69,2.66]
[1733927856819,16.45119798,226.82,226.69,4.8646]
[1733927857320,2.2036,226.8,226.71,2.2044]
[1733927857516,5.17914385,226.84,226.71,2.2044]
[1733927857820,5.17914385,226.84,226.69,8.02660044]
[1733927858216,2.2039,226.77,226.69,10.23120044]
[1733927859225,2.2037,226.79,226.7,2.2045]
[1733927859424,16.45119798,226.78,226.62,1.4299]
[1733927859641,2.66,226.77,226.59,2.66]
[1733927860028,1.4528,226.76,226.59,2.66]
[1733927860524,2.8007,226.75,226.59,2.66]
[1733927860727,2.8007,226.75,226.63,5.26848414]
[1733927861140,2.8007,226.75,226.65,2.205]
[1733927861737,2.8007,226.75,226.63,5.26848414]
[1733927861738,2.2042,226.73,226.63,5.26848414]
[1733927862735,2.2042,226.73,226.65,2.205]
[1733927864539,2.2041,226.75,226.68,2.2047]
[1733927865436,2.2039,226.77,226.66,16.45119798]
[1733927865637,2.2039,226.77,226.66,17.76849798]
[1733927866033,4.1923,226.83,226.7,16.45119798]
[1733927866233,4.1923,226.83,226.71,2.66]
[1733927867138,2.2037,226.79,226.72,2.2043]
[1733927867334,4.1923,226.83,226.71,2.66]
[1733927867541,2.2037,226.79,226.72,2.2042]
[1733927867732,1.3909,226.83,226.71,2.66]
[1733927867932,4.0811,226.88,226.74,16.45119798]
[1733927868132,2.2033,226.83,226.76,2.2039]
[1733927869136,2.2033,226.83,226.76,12.4676407]
[1733927869538,2.2029,226.87,226.8,2.2035]
[1733927870537,1.383,226.88,226.79,10.2637407]
[1733927870854,1.383,226.88,226.78,2.66]
[1733927871043,2.2031,226.85,226.78,2.66]
[1733927871242,1.383,226.88,226.78,2.66]
[1733927871743,2.66,226.93,226.81,2.2034]
[1733927872040,2.66,226.93,226.78,2.66]
[1733927872041,1.431,226.92,226.78,2.66]
[1733927872245,2.203,226.86,226.79,2.2036]
[1733927872438,1.431,226.92,226.78,2.66]
[1733927872833,1.431,226.92,226.79,5.34924655]
[1733927873038,1.431,226.92,226.79,7.55284655]
[1733927873440,1.431,226.92,226.8,2.2035]
[1733927874140,2.2027,226.89,226.8,2.2035]
[1733927874442,1.431,226.92,226.8,2.2035]
[1733927875638,1.431,226.92,226.79,5.34924655]
[1733927876040,16.42117015,226.9,226.71,16.42117015]
[1733927876244,2.66,226.89,226.74,5.38358077]
[1733927876439,2.2034,226.82,226.74,5.38358077]
[1733927876843,2.2034,226.82,226.75,2.204]
[1733927877637,2.2033,226.83,226.77,2.2038]
[1733927879940,2.2034,226.82,226.76,2.2039]
[1733927880145,2.2034,226.82,226.74,5.38358077]
[1733927880643,2.62,226.91,226.79,2.2036]
[1733927882141,2.203,226.86,226.79,2.2036]
[1733927883041,2.2031,226.85,226.79,2.2036]
[1733927883243,2.62,226.91,226.8,2.2035]
[1733927883444,16.42117015,226.81,226.51,14.68876998]
[1733927883644,16.42117015,226.74,226.55,5.34818241]
[1733927883940,2.2047,226.69,226.55,5.34818241]
[1733927884146,2.2047,226.69,226.55,2.62]
[1733927884147,16.42117015,226.69,226.55,2.62]
[1733927884537,16.42117015,226.69,226.52,2.20731061]
[1733927884538,16.42117015,226.65,226.52,2.20731061]
[1733927884739,16.42117015,226.65,226.52,4.82731061]
[1733927885149,16.42117015,226.65,226.52,2.20731061]
[1733927885640,2.206,226.55,226.52,2.20731061]
[1733927886243,2.2059,226.56,226.52,2.20731061]
[1733927887343,2.2058,226.58,226.52,2.20731061]
[1733927888045,2.2058,226.57,226.52,2.20731061]
[1733927888443,16.42117015,226.65,226.52,2.20731061]
[1733927888645,4.1221,226.64,226.52,2.20731061]
[1733927889243,2.2054,226.61,226.52,2.20731061]
[1733927889442,4.1221,226.64,226.52,2.20731061]
[1733927889946,2.2059,226.56,226.52,2.20731061]
[1733927890139,4.1221,226.64,226.52,2.20731061]
[1733927890650,2.2058,226.57,226.52,2.20731061]
[1733927891438,4.1221,226.64,226.52,2.20731061]
[1733927891439,2.2053,226.63,226.52,2.20731061]
[1733927891648,2.62,226.68,226.52,2.20731061]
[1733927891846,2.62,226.73,226.53,2.837]
[1733927892053,5.27833481,226.7,226.55,16.42117015]
[1733927892247,5.27833481,226.7,226.59,2.2056]
[1733927892543,16.42117015,226.73,226.56,2.62]
[1733927893049,2.2047,226.68,226.58,2.2056]
[1733927893645,16.42117015,226.66,226.28,13.26]
[1733927893953,16.42117015,226.61,226.43,2.797]
[1733927894146,2.2061,226.54,226.45,2.2069]
[1733927894547,2.62,226.59,226.43,5.417]
[1733927894741,2.2057,226.58,226.43,5.417]
[1733927895345,2.2057,226.58,226.49,2.2065]
[1733927895542,2.2056,226.59,226.47,5.33932359]
[1733927895744,2.62,226.6,226.47,5.33932359]
[1733927896046,2.62,226.6,226.5,2.2064]
[1733927896244,4.8256,226.6,226.5,2.2064]
[1733927896848,2.2056,226.59,226.5,2.2064]
[1733927897052,2.62,226.6,226.49,2.62]
[1733927898552,2.2059,226.57,226.49,4.8266]
[1733927898856,2.62,226.6,226.49,2.62]
[1733927899654,2.62,226.6,226.47,7.95932359]
[1733927900642,2.6369,226.64,226.47,7.95932359]
[1733927900849,2.62,226.65,226.49,16.42117015]
[1733927901153,2.2052,226.64,226.56,2.2059]
[1733927901354,24.4819864,226.71,226.54,2.62]
[1733927901544,24.4819864,226.71,226.54,6.803]
[1733927901545,2.62,226.7,226.54,6.803]
[1733927901750,2.205,226.65,226.56,2.2058]
[1733927902053,2.205,226.65,226.54,6.803]
[1733927902557,2.2051,226.64,226.54,6.803]
[1733927903053,2.62,226.7,226.54,6.803]
[1733927903257,2.2052,226.63,226.55,2.2059]
[1733927903456,2.2052,226.63,226.54,6.803]
[1733927904147,2.2052,226.63,226.56,2.2059]
[1733927904553,2.2054,226.61,226.54,6.803]
[1733927904757,2.62,226.68,226.54,6.803]
[1733927905551,6.67861625,226.71,226.54,6.803]
[1733927905753,2.205,226.65,226.58,2.2056]
[1733927906659,2.2051,226.64,226.58,2.2056]
[1733927906957,2.62,226.7,226.58,2.2056]
[1733927907353,6.67861625,226.71,226.62,2.2053]
[1733927907653,2.62,226.76,226.6,2.62]
[1733927907858,2.62,226.76,226.57,16.42117015]
[1733927908161,5.41235202,226.74,226.61,4.8254]
[1733927908355,2.2046,226.69,226.61,2.62]
[1733927908954,2.2046,226.7,226.62,2.2053]
[1733927909550,2.66,226.73,226.62,2.2053]
[1733927909756,2.2045,226.7,226.63,2.2052]
[1733927910058,2.66,226.73,226.61,2.62]
[1733927910459,16.42117015,226.71,226.54,4.183]
[1733927910656,16.42117015,226.67,226.54,4.183]
[1733927910957,2.66,226.66,226.54,4.183]
[1733927911159,2.66,226.68,226.54,4.183]
[1733927911858,2.2052,226.64,226.57,2.2057]
[1733927912163,2.66,226.68,226.54,4.183]
[1733927912360,2.66,226.68,226.5,2.2064]
[1733927912361,2.2059,226.57,226.5,2.2064]
[1733927912556,2.2059,226.57,226.49,2.66]
[1733927912557,2.66,226.62,226.48,2.66]
[1733927912754,2.66,226.62,226.47,8.15462359]
[1733927913554,2.2061,226.54,226.47,8.15462359]
[1733927913960,2.2059,226.56,226.47,10.36132359]
[1733927914155,16.42117015,226.63,226.47,8.15462359]
[1733927914459,2.66,226.62,226.47,8.15462359]
[1733927914660,2.2055,226.61,226.47,8.15462359]
[1733927914863,2.66,226.62,226.47,8.15462359]
[1733927915058,2.2057,226.58,226.47,8.15462359]
[1733927915367,2.66,226.62,226.47,8.15462359]
[1733927915753,2.2055,226.61,226.52,2.2063]
[1733927915956,4.8655,226.61,226.47,8.15462359]
[1733927916263,16.42117015,226.59,226.47,1.4063]
[1733927916560,16.42117015,226.59,226.42,2.66]
[1733927917061,1.4493,226.58,226.42,2.66]
[1733927917265,2.2062,226.54,226.42,2.66]
[1733927917464,2.66,226.54,226.42,2.66]
[1733927919261,2.66,226.54,226.41,3.5218]
[1733927919654,2.2065,226.5,226.41,3.5218]
[1733927920168,2.66,226.54,226.41,1.3145]
[1733927920557,1.4493,226.58,226.44,16.42117015]
[1733927920860,3.6307,226.6,226.5,2.2064]
[1733927921067,1.4252,226.6,226.5,2.2064]
[1733927921462,2.66,226.59,226.5,2.2064]
[1733927922363,4.8656,226.59,226.5,2.2064]
[1733927922670,4.8656,226.59,226.45,4.0576]
[1733927922671,2.66,226.59,226.45,4.0576]
[1733927923164,3.6308,226.6,226.45,4.0576]
[1733927923366,2.66,226.59,226.45,4.0576]
[1733927923669,2.66,226.59,226.51,2.2064]
[1733927924269,4.8657,226.59,226.5,2.2064]
[1733927924768,2.66,226.59,226.49,2.2065]
[1733927924959,2.66,226.59,226.45,4.0576]
[1733927926167,2.66,226.59,226.5,2.2064]
[1733927927366,2.66,226.59,226.45,4.0576]
[1733927928068,2.2058,226.57,226.45,4.0576]
[1733927928572,2.66,226.59,226.45,4.0576]
[1733927928973,2.2055,226.6,226.5,2.2064]
[1733927929166,4.8655,226.6,226.45,4.0576]
[1733927929567,4.8655,226.6,226.5,2.2064]
[1733927930277,2.2055,226.6,226.51,2.2063]
[1733927930579,2.2056,226.59,226.51,2.2063]
[1733927931074,31.47952432,226.66,226.53,2.2062]
[1733927931075,4.8653,226.62,226.53,2.2062]
[1733927931470,2.66,226.62,226.5,10.28722947]
[1733927931665,2.2056,226.6,226.5,10.28722947]
[1733927931872,18.13132168,226.62,226.5,10.28722947]
[1733927932171,2.206,226.55,226.45,1.3976]
[1733927932473,10.28722947,226.59,226.2,18.30135347]
[1733927932474,10.28722947,226.48,226.2,18.30135347]
[1733927932675,10.28722947,226.48,226.33,10.28722947]
[1733927932969,2.2071,226.43,226.33,10.28722947]
[1733927933370,2.66,226.44,226.33,10.28722947]
[1733927933977,4.8671,226.44,226.33,10.28722947]
[1733927934975,2.2071,226.44,226.33,10.28722947]
[1733927935180,2.66,226.43,226.3,16.48599218]
[1733927935675,2.66,226.43,226.33,2.2081]
[1733927936578,2.66,226.44,226.3,16.48599218]
[1733927936971,16.48599218,226.49,226.3,16.48599218]
[1733927937272,16.48599218,226.53,226.34,16.48599218]
[1733927937471,15.76195255,226.52,226.35,2.66]
[1733927937668,3.37417605,226.52,226.35,2.66]
[1733927937873,2.66,226.52,226.35,2.66]
[1733927938579,4.1185,226.54,226.38,16.48599218]
[1733927938580,2.62,226.51,226.38,16.48599218]
[1733927938768,2.62,226.51,226.39,4.1861]
[1733927938971,2.2063,226.52,226.43,2.2071]
[1733927939174,4.8263,226.52,226.43,2.2071]
[1733927939478,2.62,226.52,226.39,4.1861]
[1733927939675,4.1185,226.54,226.39,4.1861]
[1733927939876,2.62,226.53,226.39,4.1861]
[1733927940071,8.01044602,226.53,226.39,4.1861]
[1733927940276,16.48599218,226.52,226.39,4.1861]
[1733927940773,2.62,226.51,226.39,4.1861]
[1733927942080,2.2068,226.47,226.39,4.1861]
[1733927942288,2.62,226.51,226.39,4.1861]
[1733927943176,2.2067,226.49,226.4,2.2074]
[1733927943484,2.62,226.51,226.39,4.1861]
[1733927944172,2.2067,226.48,226.39,4.1861]
[1733927944570,2.2067,226.48,226.36,2.62]
[1733927944571,2.207,226.45,226.35,2.2079]
[1733927944776,19.10599218,226.44,226.29,4.1909]
[1733927945077,2.2076,226.39,226.29,2.7522]
[1733927945283,2.62,226.43,226.29,2.7522]
[1733927945481,19.10599218,226.43,226.29,2.7522]
[1733927946081,16.48599218,226.39,226.28,5.39654198]
[1733927946280,16.48599218,226.39,226.05,48.8237522]
[1733927946281,16.48599218,226.31,226.17,2.8339]
[1733927946476,2.62,226.3,226.17,2.8339]
[1733927946778,16.48599218,226.27,226.11,5.40528697]
[1733927947680,2.2092,226.22,226.11,7.61558697]
[1733927947878,4.8492,226.22,226.11,7.61558697]
[1733927948081,2.2094,226.2,226.1,4.1613]
[1733927948276,2.64,226.22,226.1,4.1613]
[1733927949582,2.64,226.21,226.1,4.1613]
[1733927950488,2.64,226.21,226.1,9.4447947]
[1733927950689,2.2095,226.19,226.1,9.4447947]
[1733927950990,2.64,226.22,226.1,9.4447947]
[1733927951385,2.64,226.22,226.1,11.6550947]
[1733927951386,4.8492,226.22,226.1,11.6550947]
[1733927951581,2.64,226.22,226.1,9.4447947]
[1733927951787,2.64,226.22,226.03,16.48599218]
[1733927951984,2.64,226.22,226.04,4.0412]
[1733927952284,2.64,226.22,226.04,1.4012]
[1733927952285,16.48599218,226.19,226.04,1.4012]
[1733927952793,2.2099,226.15,226.04,1.4012]
[1733927953090,2.64,226.14,226.04,1.4012]
[1733927953286,2.2107,226.07,225.98,5.362036]
[1733927953480,2.2107,226.07,225.96,2.8009]
[1733927953481,2.64,226.07,225.96,2.8009]
[1733927954690,2.2108,226.06,225.96,2.8009]
[1733927954883,2.64,226.07,225.96,2.8009]
[1733927955089,2.2109,226.05,225.96,2.8009]
[1733927955287,2.64,226.07,225.96,2.8009]
[1733927956702,2.64,226.07,225.96,5.0126]
[1733927956895,2.64,226.07,225.96,2.8009]
[1733927957205,2.211,226.04,225.96,2.8009]
[1733927960197,2.64,226.07,225.99,2.2114]
[1733927960995,2.64,226.07,225.96,2.8009]
[1733927961803,19.12599218,226.07,225.96,1.4314]
[1733927961997,16.48599218,226.03,225.86,0.25991]
[1733927962200,16.48599218,225.99,225.86,0.25991]
[1733927962500,2.2121,225.92,225.86,0.25991]
[1733927962809,2.64,225.98,225.86,0.25991]
[1733927964200,16.48599218,225.95,225.86,0.25991]
[1733927964797,16.48599218,225.91,225.86,0.25991]
[1733927964998,2.2126,225.87,225.86,0.25991]
[1733927965302,2.64,225.9,225.76,1.3381]
[1733927965608,5.3371,225.9,225.76,1.3381]
[1733927966204,2.213,225.84,225.76,1.3381]
[1733927966405,16.48599218,225.78,225.64,5.22300504]
[1733927966602,2.64,225.77,225.56,16.48599218]
[1733927966799,2.64,225.77,225.57,2.22103344]
[1733927967104,2.64,225.77,225.57,1.4072]
[1733927967307,4.0051,225.77,225.57,1.4072]
[1733927967604,2.2144,225.69,225.57,3.6227]
[1733927967798,2.68,225.69,225.61,5.21997573]
[1733927967999,2.68,225.71,225.61,5.21997573]
[1733927968405,2.68,225.72,225.61,7.43507573]
[1733927968602,1.3651,225.77,225.61,5.21997573]
[1733927968905,2.68,225.81,225.64,16.48599218]
[1733927969610,2.2137,225.77,225.64,16.48599218]
[1733927969822,2.68,225.81,225.64,16.48599218]
[1733927970704,2.2136,225.77,225.64,2.2148]
[1733927970906,16.48599218,225.74,225.62,1.3307]
[1733927971103,2.68,225.73,225.62,1.3307]
[1733927971297,2.68,225.73,225.61,5.21997573]
[1733927971802,4.894,225.73,225.61,5.21997573]
[1733927972000,1.4162,225.75,225.61,5.21997573]
[1733927972001,16.48599218,225.78,225.61,5.21997573]
[1733927972205,2.68,225.77,225.67,2.2145]
[1733927973705,2.2149,225.64,225.52,57.38451684]
[1733927973905,2.2149,225.64,225.16,18.30135347]
[1733927973906,16.48599218,225.65,225.51,5.30981328]
[1733927974110,16.48599218,225.69,225.52,4.1959]
[1733927974606,3.0,225.68,225.52,4.1959]
[1733927974807,3.0,225.67,225.52,4.1959]
[1733927975004,2.2147,225.66,225.53,2.2159]
[1733927975407,3.0,225.67,225.52,4.1959]
[1733927975408,16.48599218,225.65,225.52,4.1959]
[1733927976207,5.19231366,225.67,225.52,4.1959]
[1733927977006,5.19231366,225.67,225.56,2.2156]
[1733927977007,7.40691366,225.67,225.56,2.2156]
[1733927977314,5.19231366,225.67,225.52,4.1959]
[1733927978412,16.48599218,225.64,225.52,4.1959]
[1733927978612,2.215,225.63,225.52,4.1959]
[1733927979309,2.215,225.63,225.39,16.48599218]
[1733927979310,16.48599218,225.64,225.43,16.48599218]
[1733927979508,2.2154,225.59,225.44,5.21825645]
[1733927979708,3.0,225.62,225.44,1.4038]
[1733927979908,5.19231366,225.67,225.47,16.48599218]
[1733927980205,5.19231366,225.67,225.51,16.48599218]
[1733927980407,5.19231366,225.67,225.52,5.7459]
[1733927980811,5.19231366,225.67,225.56,2.2156]
[1733927980812,2.2147,225.66,225.56,2.2156]
[1733927981014,4.3492,225.7,225.52,5.7459]
[1733927981512,4.3492,225.7,225.55,2.2157]
[1733927982216,5.20381921,225.69,225.52,5.7459]
[1733927982409,16.48599218,225.72,225.52,5.7459]
[1733927982410,17.80169218,225.76,225.55,16.48599218]
[1733927982603,3.0,225.75,225.56,1.3651]
[1733927982804,2.2141,225.73,225.62,2.215]
[1733927983013,20.80169218,225.76,225.62,3.0]
[1733927983207,5.25249347,225.74,225.62,3.0]
[1733927983714,5.25249347,225.74,225.64,2.2148]
[1733927983715,7.46649347,225.74,225.64,2.2148]
[1733927984107,2.2141,225.73,225.62,5.215]
[1733927984310,5.25249347,225.74,225.62,3.0]